[Event "CZE-ch 2020"]
[Site "Pilsen"]
[Date "2020.08.27"]
[Round "5.35"]
[White "Koubova, Anna Marie"]
[Black "Babula ml., Vlastimil"]
[Result "1-0"]
[ECO "E98"]
[WhiteElo "2099"]
[BlackElo "2138"]
[Annotator "ChessBase"]
[PlyCount "143"]
[EventDate "2020.08.23"]
[EventType "swiss"]
[EventCountry "CZE"]
[SourceTitle "playchess.com"]
[Source "ChessBase"]
[SourceQuality "1"]
[TimeControl "40/5400+30:1800+30"]

1. d4 {[%emt 0:01:07]} Nf6 {[%emt 0:00:00]} 2. c4 {[%emt 0:00:11]} g6 {[%emt 0:00:51]} 3. Nc3 {[%emt 0:00:17]} Bg7 {[%emt 0:01:11]} 4. Nf3 {[%emt 0:00:35]} O-O {[%emt 0:00:45]} 5. e4 {[%emt 0:00:13]} d6 {[%emt 0:00:53]} 6. Be2 {[%emt 0:00:14]} e5 {[%emt 0:00:43]} 7. O-O {[%emt 0:00:18]} Nc6 {[%emt 0:00:42]} 8. d5 {[%emt 0:00:19]} Ne7 {[%emt 0:00:14]} 9. Ne1 {[%emt 0:00:12]} Nd7 {[%emt 0:01:09]} 10. Nd3 {[%emt 0:00:20]} f5 {[%emt 0:02:17]} 11. Bd2 {[%emt 0:04:10]} Nf6 {[%emt 0:13:02]} 12. f3 {[%emt 0:00:12]} f4 {[%emt 0:03:09]} 13. c5 {[%emt 0:00:12]} g5 {[%emt 0:00:38]} 14. Rc1 {[%emt 0:00:21]} Ng6 {[%emt 0:01:11]} 15. cxd6 {[%emt 0:01:03]} cxd6 {[%emt 0:00:19]} 16. Nb5 {[%emt 0:00:18]} Rf7 {[%emt 0:02:16]} 17. Qc2 {[%emt 0:00:14]} Ne8 {[%emt 0:04:32]} 18. a4 {[%emt 0:00:17]} Bf8 {[%emt 0:03:40]} 19. Nf2 {[%emt 0:00:47]} h5 {[%emt 0:03:40]} 20. h3 {[%emt 0:12:12]} Bd7 {[%emt 0:05:55]} 21. Qb3 {[%emt 0:01:26]} Nh4 {[%emt 0:06:08]} 22. Rc2 {[%emt 0:05:52]} a6 {[%emt 0:12:56]} 23. Na3 {[%emt 0:00:34]} Nf6 {[%emt 0:00:21]} 24. Be1 {[%emt 0:02:05]} Rg7 {[%emt 0:09:03]} 25. Nc4 {[%emt 0:09:12]} b5 {[%emt 0:02:20]} 26. axb5 {[%emt 0:08:08]} axb5 {[%emt 0:00:03]} 27. Na3 {[%emt 0:00:46]} Qe8 {[%emt 0:08:33]} 28. Rc7 {[%emt 0:16:24]} Nxg2 {[%emt 0:03:01]} 29. Rxd7 {[%emt 0:00:54]} Qxd7 {[%emt 0:00:15]} 30. Kxg2 {[%emt 0:01:11]} Rb8 {[%emt 0:03:41]} 31. Bxb5 {[%emt 0:08:33]} g4 {[%emt 0:02:16]} 32. Bxd7 {[%emt 0:10:06]} gxf3+ {[%emt 0:00:19]} 33. Kh1 {[%emt 0:01:06]} Rxb3 {[%emt 0:00:04]} 34. Be6+ {[%emt 0:00:06]} Kh8 {[%emt 0:00:32]} 35. Bc3 {[%emt 0:02:19]} Ra7 {[%emt 0:02:41]} 36. Nc4 {[%emt 0:03:03]} Ra4 {[%emt 0:00:41]} 37. Nd2 {[%emt 0:00:41]} Rb7 {[%emt 0:00:16]} 38. Rg1 {[%emt 0:04:16]} Bg7 {[%emt 0:01:56]} 39. Bf5 {[%emt 0:01:15]} Kg8 {[%emt 0:06:38]} 40. Nxf3 {[%emt 0:02:55]} Kf8 {[%emt 0:00:36]} 41. Ng5 {[%emt 0:12:55]} Kg8 {[%emt 0:02:59]} 42. Ne6 {[%emt 0:03:00]} Kh8 {[%emt 0:01:51]} 43. Rg6 {[%emt 0:05:35]} Ne8 {[%emt 0:00:59]} 44. h4 {[%emt 0:06:12]} Ra1+ {[%emt 0:05:38]} 45. Kg2 {[%emt 0:01:06]} Rc1 {[%emt 0:00:06]} 46. Rg5 {[%emt 0:03:51]} Nf6 {[%emt 0:00:34]} 47. Nd8 {[%emt 0:01:58]} Ra7 {[%emt 0:02:11]} 48. Bg6 {[%emt 0:00:30]} Rc2 {[%emt 0:00:55]} 49. Bf5 {[%emt 0:03:48]} Kg8 {[%emt 0:01:55]} 50. Nc6 {[%emt 0:00:59]} Ra1 {[%emt 0:01:08]} 51. Nb4 {[%emt 0:00:21]} Rcc1 {[%emt 0:00:55]} 52. Kf3 {[%emt 0:00:26]} Rg1 {[%emt 0:00:39]} 53. Rxg1 {[%emt 0:00:45]} Rxg1 {[%emt 0:00:05]} 54. Nc6 {[%emt 0:00:20]} Ng4 {[%emt 0:00:45]} 55. Bb4 {[%emt 0:00:40]} Rf1 {[%emt 0:01:24]} 56. Bxg4 {[%emt 0:00:14]} hxg4+ {[%emt 0:00:08]} 57. Kg2 {[%emt 0:00:05]} Rb1 {[%emt 0:00:32]} 58. Nxg4 {[%emt 0:00:54]} Rxb2+ {[%emt 0:00:17]} 59. Kf3 {[%emt 0:00:17]} Rb3+ {[%emt 0:00:50]} 60. Kf2 {[%emt 0:00:10]} Bf8 {[%emt 0:00:25]} 61. Nf6+ {[%emt 0:01:02]} Kf7 {[%emt 0:02:41]} 62. Nd7 {[%emt 0:00:19]} Be7 {[%emt 0:00:51]} 63. Ndxe5+ {[%emt 0:00:27]} dxe5 {[%emt 0:00:13]} 64. Bxe7 {[%emt 0:00:07]} Rb2+ {[%emt 0:00:19]} 65. Kf1 {[%emt 0:00:36]} Rb1+ {[%emt 0:00:12]} 66. Kf2 {[%emt 0:00:08]} Rb2+ {[%emt 0:00:22]} 67. Kf3 {[%emt 0:01:40]} Rb3+ {[%emt 0:00:15]} 68. Kg4 {[%emt 0:00:30]} Rg3+ {[%emt 0:00:37]} 69. Kf5 {[%emt 0:00:16]} f3 {[%emt 0:00:33]} 70. Bc5 {[%emt 0:00:05]} Rh3 {[%emt 0:02:04]} 71. Nxe5+ {[%emt 0:00:14]} Ke8 {[%emt 0:00:30]} 72. d6 {[%emt 0:00:28]} 1-0

[Event "CZE-ch 2020"]
[Site "Pilsen"]
[Date "2020.08.27"]
[Round "5.36"]
[White "Bartos, Jan"]
[Black "Benes, Miroslav"]
[Result "1-0"]
[ECO "D02"]
[WhiteElo "2131"]
[BlackElo "2011"]
[Annotator "ChessBase"]
[PlyCount "109"]
[EventDate "2020.08.23"]
[EventType "swiss"]
[EventCountry "CZE"]
[SourceTitle "playchess.com"]
[Source "ChessBase"]
[SourceQuality "1"]
[TimeControl "40/5400+30:1800+30"]

1. d4 {[%emt 0:00:00]} d5 {[%emt 0:02:39]} 2. Nf3 {[%emt 0:00:16]} c5 {[%emt 0:01:32]} 3. c4 {[%emt 0:00:31]} cxd4 {[%emt 0:00:50]} 4. cxd5 {[%emt 0:00:19]} Qxd5 {[%emt 0:01:28]} 5. Nc3 {[%emt 0:01:40]} Qa5 {[%emt 0:00:45]} 6. Nxd4 {[%emt 0:00:17]} Nf6 {[%emt 0:01:48]} 7. Nb3 {[%emt 0:17:42]} Qh5 {[%emt 0:07:35]} 8. f3 {[%emt 0:05:18]} Nc6 {[%emt 0:04:49]} 9. e4 {[%emt 0:00:52]} Bd7 {[%emt 0:00:22]} 10. Be3 {[%emt 0:00:30]} e6 {[%emt 0:08:48]} 11. Qd2 {[%emt 0:10:51]} Bb4 {[%emt 0:04:00]} 12. O-O-O {[%emt 0:03:14]} O-O {[%emt 0:02:30]} 13. g4 {[%emt 0:01:13]} Qe5 {[%emt 0:00:18]} 14. Bf4 {[%emt 0:01:25]} Nxe4 {[%emt 0:03:26]} 15. fxe4 {[%emt 0:00:41]} Bxc3 {[%emt 0:00:38]} 16. bxc3 {[%emt 0:00:24]} Qxe4 {[%emt 0:00:36]} 17. Bd3 {[%emt 0:01:33]} Qa4 {[%emt 0:01:45]} 18. Kb2 {[%emt 0:03:20]} e5 {[%emt 0:01:01]} 19. Nc5 {[%emt 0:02:56]} Qxf4 {[%emt 0:01:38]} 20. Qxf4 {[%emt 0:00:07]} exf4 {[%emt 0:00:03]} 21. Nxd7 {[%emt 0:00:10]} Rfd8 {[%emt 0:00:10]} 22. Be4 {[%emt 0:02:07]} Na5 {[%emt 0:03:06]} 23. Rd4 {[%emt 0:00:33]} Re8 {[%emt 0:00:34]} 24. Rhd1 {[%emt 0:06:24]} Rac8 {[%emt 0:02:32]} 25. Bd5 {[%emt 0:00:56]} Nc6 {[%emt 0:00:35]} 26. Bxc6 {[%emt 0:01:05]} Rxc6 {[%emt 0:00:01]} 27. Ne5 {[%emt 0:04:51]} Rce6 {[%emt 0:00:06]} 28. Nf3 {[%emt 0:00:20]} Re2+ {[%emt 0:04:37]} 29. R1d2 {[%emt 0:02:54]} h6 {[%emt 0:00:43]} 30. Rxf4 {[%emt 0:07:04]} Rxd2+ {[%emt 0:00:40]} 31. Nxd2 {[%emt 0:00:05]} Re2 {[%emt 0:00:09]} 32. Rd4 {[%emt 0:00:33]} Rxh2 {[%emt 0:00:04]} 33. Kb3 {[%emt 0:00:04]} h5 {[%emt 0:01:08]} 34. Nf3 {[%emt 0:01:33]} Rh1 {[%emt 0:02:33]} 35. Rd8+ {[%emt 0:04:24]} Kh7 {[%emt 0:00:01]} 36. gxh5 {[%emt 0:00:06]} Rxh5 {[%emt 0:00:42]} 37. Nd4 {[%emt 0:00:06]} Rh6 {[%emt 0:07:24]} 38. Rd7 {[%emt 0:02:49]} Rb6+ {[%emt 0:00:38]} 39. Kc4 {[%emt 0:00:19]} Kg6 {[%emt 0:05:01]} 40. Nb5 {[%emt 0:01:35]} f5 {[%emt 0:03:39]} 41. Nd6 {[%emt 0:33:47]} Ra6 {[%emt 0:36:41]} 42. Ne8 {[%emt 0:01:24]} Rxa2 {[%emt 0:00:56]} 43. Rxg7+ {[%emt 0:00:15]} Kh5 {[%emt 0:00:57]} 44. Nf6+ {[%emt 0:02:42]} Kh4 {[%emt 0:00:11]} 45. Rxb7 {[%emt 0:00:09]} Kg3 {[%emt 0:02:13]} 46. Nd5 {[%emt 0:02:11]} Kf3 {[%emt 0:04:38]} 47. Rf7 {[%emt 0:05:12]} Ke4 {[%emt 0:00:28]} 48. Re7+ {[%emt 0:00:05]} Kf3 {[%emt 0:00:16]} 49. Kb5 {[%emt 0:00:29]} Rd2 {[%emt 0:01:15]} 50. c4 {[%emt 0:00:22]} a6+ {[%emt 0:00:02]} 51. Kxa6 {[%emt 0:00:44]} Kg3 {[%emt 0:02:04]} 52. Kb5 {[%emt 0:00:36]} f4 {[%emt 0:00:06]} 53. Rg7+ {[%emt 0:00:45]} Kf3 {[%emt 0:00:10]} 54. Rf7 {[%emt 0:00:07]} Rd4 {[%emt 0:00:58]} 55. Rxf4+ 1-0

[Event "CZE-ch 2020"]
[Site "Pilsen"]
[Date "2020.08.27"]
[Round "5.37"]
[White "Joukl, Zdenek"]
[Black "Placer, Sebastian"]
[Result "1/2-1/2"]
[ECO "C00"]
[WhiteElo "2062"]
[BlackElo "2097"]
[Annotator "ChessBase"]
[PlyCount "142"]
[EventDate "2020.08.23"]
[EventType "swiss"]
[EventCountry "CZE"]
[SourceTitle "playchess.com"]
[Source "ChessBase"]
[SourceQuality "1"]
[TimeControl "40/5400+30:1800+30"]

1. e4 {[%emt 0:00:00]} e6 {[%emt 0:00:00]} 2. d3 {[%emt 0:00:07]} d5 {[%emt 0:00:00]} 3. Nd2 {[%emt 0:00:06]} Nf6 {[%emt 0:00:13]} 4. Ngf3 {[%emt 0:00:38]} c5 {[%emt 0:00:19]} 5. c3 {[%emt 0:01:57]} Nc6 {[%emt 0:00:18]} 6. Be2 {[%emt 0:01:42]} Be7 {[%emt 0:00:09]} 7. O-O {[%emt 0:00:58]} O-O {[%emt 0:00:09]} 8. Qc2 {[%emt 0:00:37]} Qc7 {[%emt 0:00:22]} 9. b3 {[%emt 0:07:37]} b6 {[%emt 0:01:20]} 10. Re1 {[%emt 0:04:02]} Bb7 {[%emt 0:01:13]} 11. Bb2 {[%emt 0:00:53]} Rac8 {[%emt 0:00:44]} 12. Rac1 {[%emt 0:01:17]} Rfd8 {[%emt 0:01:23]} 13. Bf1 {[%emt 0:02:23]} Nd7 {[%emt 0:02:58]} 14. exd5 {[%emt 0:11:39]} exd5 {[%emt 0:00:25]} 15. d4 {[%emt 0:01:01]} cxd4 {[%emt 0:13:29]} 16. cxd4 {[%emt 0:00:58]} Qd6 {[%emt 0:00:51]} 17. Qf5 {[%emt 0:05:33]} g6 {[%emt 0:02:16]} 18. Qg4 {[%emt 0:05:52]} Bf6 {[%emt 0:03:21]} 19. h4 {[%emt 0:11:05]} Nf8 {[%emt 0:03:05]} 20. h5 {[%emt 0:02:50]} Rc7 {[%emt 0:03:14]} 21. hxg6 {[%emt 0:01:17]} hxg6 {[%emt 0:00:30]} 22. Bd3 {[%emt 0:05:57]} Bc8 {[%emt 0:03:36]} 23. Qg3 {[%emt 0:02:58]} Qxg3 {[%emt 0:00:46]} 24. fxg3 {[%emt 0:00:03]} Ne6 {[%emt 0:01:21]} 25. Ne5 {[%emt 0:04:32]} Nxe5 {[%emt 0:02:10]} 26. dxe5 {[%emt 0:00:38]} Bg5 {[%emt 0:01:19]} 27. Rxc7 {[%emt 0:01:23]} Nxc7 {[%emt 0:00:01]} 28. Nf3 {[%emt 0:01:16]} Be7 {[%emt 0:00:06]} 29. Kf1 {[%emt 0:02:20]} Ne6 {[%emt 0:00:30]} 30. Nd4 {[%emt 0:02:50]} Bd7 {[%emt 0:14:41]} 31. Rc1 {[%emt 0:02:08]} Nc5 {[%emt 0:00:50]} 32. Bb1 {[%emt 0:02:37]} Bg5 {[%emt 0:00:51]} 33. Re1 {[%emt 0:03:26]} Re8 {[%emt 0:02:06]} 34. Nf3 {[%emt 0:01:41]} Bb5+ {[%emt 0:00:20]} 35. Kf2 {[%emt 0:01:11]} Bh6 {[%emt 0:00:21]} 36. Bd4 {[%emt 0:05:29]} Ne6 {[%emt 0:02:09]} 37. Bb2 {[%emt 0:01:10]} Bf8 {[%emt 0:00:37]} 38. g4 {[%emt 0:02:20]} Bc5+ {[%emt 0:01:44]} 39. Kg3 {[%emt 0:00:09]} Rc8 {[%emt 0:02:16]} 40. Rc1 {[%emt 0:02:23]} Rd8 {[%emt 0:00:16]} 41. Rd1 {[%emt 0:31:26]} Kf8 {[%emt 0:37:30]} 42. Nd4 {[%emt 0:00:00]} Bd7 {[%emt 0:00:00]} 43. Nxe6+ {[%emt 0:00:00]} Bxe6 {[%emt 0:00:00]} 44. Bd3 {[%emt 0:00:00]} Rc8 {[%emt 0:00:00]} 45. Kf3 {[%emt 0:00:00]} Be7 {[%emt 0:00:00]} 46. Rc1 {[%emt 0:00:00]} Bg5 {[%emt 0:00:00]} 47. Rxc8+ {[%emt 0:00:00]} Bxc8 {[%emt 0:00:00]} 48. Ba3+ {[%emt 0:00:00]} Ke8 {[%emt 0:00:00]} 49. Bd6 {[%emt 0:00:00]} Kd7 {[%emt 0:00:00]} 50. Ba3 {[%emt 0:00:04]} Ke6 {[%emt 0:00:00]} 51. Bb2 {[%emt 0:00:08]} Bd8 {[%emt 0:00:00]} 52. Kf4 {[%emt 0:01:59]} Bc7 {[%emt 0:00:00]} 53. g5 {[%emt 0:00:15]} Kd7 {[%emt 0:00:00]} 54. Bb5+ {[%emt 0:03:02]} Ke7 {[%emt 0:00:00]} 55. Bc6 {[%emt 0:01:06]} Ke6 {[%emt 0:00:00]} 56. Bd4 {[%emt 0:02:09]} Bd7 {[%emt 0:00:00]} 57. Bb7 {[%emt 0:00:24]} Bb8 {[%emt 0:00:00]} 58. a3 {[%emt 0:00:27]} Bc7 {[%emt 0:00:00]} 59. Bc3 {[%emt 0:00:12]} Bd8 {[%emt 0:09:25]} 60. Ke3 {[%emt 0:00:23]} Bxg5+ {[%emt 0:00:10]} 61. Kd4 {[%emt 0:00:29]} Bh4 {[%emt 0:01:27]} 62. Bxd5+ Ke7 {[%emt 0:00:02]} 63. Bb4+ {[%emt 0:01:12]} Ke8 {[%emt 0:00:05]} 64. Bd2 {[%emt 0:00:54]} Be7 {[%emt 0:08:44]} 65. b4 {[%emt 0:00:39]} Bb5 {[%emt 0:01:20]} 66. Bf3 {[%emt 0:00:29]} Kd7 {[%emt 0:03:30]} 67. Bg4+ {[%emt 0:00:06]} Kc6 {[%emt 0:00:23]} 68. Bf3+ {[%emt 0:00:21]} Kd7 {[%emt 0:00:10]} 69. Bg4+ {[%emt 0:00:17]} Kc6 {[%emt 0:00:06]} 70. Bf3+ {[%emt 0:00:58]} Kd7 {[%emt 0:00:16]} 71. Bg4+ {[%emt 0:00:41]} Kc6 {[%emt 0:00:06]} 1/2-1/2

[Event "CZE-ch 2020"]
[Site "Pilsen"]
[Date "2020.08.28"]
[Round "6.2"]
[White "Hollan, Martin"]
[Black "Stocek, Jiri"]
[Result "0-1"]
[ECO "A20"]
[WhiteElo "2346"]
[BlackElo "2595"]
[Annotator "ChessBase"]
[PlyCount "40"]
[EventDate "2020.08.23"]
[EventType "swiss"]
[EventCountry "CZE"]
[SourceTitle "playchess.com"]
[Source "ChessBase"]
[SourceQuality "1"]
[TimeControl "40/5400+30:1800+30"]

1. c4 {[%emt 0:00:00]} e5 {[%emt 0:07:01]} 2. d3 {[%emt 0:00:00]} Bb4+ {[%emt 0:03:52]} 3. Nd2 {[%emt 0:01:32]} a5 {[%emt 0:00:55]} 4. Ngf3 {[%emt 0:00:55]} d6 {[%emt 0:03:16]} 5. d4 {[%emt 0:06:11]} exd4 {[%emt 0:10:40]} 6. Nxd4 {[%emt 0:00:15]} Nf6 {[%emt 0:05:59]} 7. a3 {[%emt 0:00:10]} Bc5 {[%emt 0:00:54]} 8. N2f3 {[%emt 0:00:06]} a4 {[%emt 0:01:49]} 9. Bg5 {[%emt 0:00:33]} c6 {[%emt 0:05:28]} 10. e3 {[%emt 0:06:56]} Nbd7 {[%emt 0:06:19]} 11. Bd3 {[%emt 0:07:24]} Ne5 {[%emt 0:06:09]} 12. Nxe5 {[%emt 0:06:39]} dxe5 {[%emt 0:00:18]} 13. Ne2 {[%emt 0:00:37]} Bg4 {[%emt 0:07:56]} 14. Bxf6 {[%emt 0:02:13]} Qxf6 {[%emt 0:00:13]} 15. h3 {[%emt 0:00:19]} Bxe2 {[%emt 0:04:50]} 16. Qxe2 {[%emt 0:01:22]} O-O {[%emt 0:01:16]} 17. O-O {[%emt 0:00:55]} Qe6 {[%emt 0:00:29]} 18. Qf3 {[%emt 0:32:56]} g6 {[%emt 0:09:37]} 19. g4 {[%emt 0:01:27]} Rad8 {[%emt 0:00:21]} 20. Rad1 {[%emt 0:01:14]} Rxd3 {[%emt 0:00:35]} 0-1

[Event "CZE-ch 2020"]
[Site "Pilsen"]
[Date "2020.08.28"]
[Round "6.3"]
[White "Michalik, Peter"]
[Black "Hracek, Zbynek"]
[Result "1/2-1/2"]
[ECO "D02"]
[WhiteElo "2593"]
[BlackElo "2563"]
[Annotator "ChessBase"]
[PlyCount "69"]
[EventDate "2020.08.23"]
[EventType "swiss"]
[EventCountry "CZE"]
[SourceTitle "playchess.com"]
[Source "ChessBase"]
[SourceQuality "1"]
[TimeControl "40/5400+30:1800+30"]

1. d4 {[%emt 0:00:00]} d5 {[%emt 0:00:00]} 2. Nf3 {[%emt 0:00:04]} Nf6 {[%emt 0:00:00]} 3. Bf4 {[%emt 0:00:18]} c5 {[%emt 0:00:00]} 4. e3 {[%emt 0:00:06]} Nc6 {[%emt 0:00:01]} 5. Nbd2 {[%emt 0:00:05]} Bg4 {[%emt 0:00:46]} 6. h3 {[%emt 0:02:08]} Bxf3 {[%emt 0:00:11]} 7. Nxf3 {[%emt 0:00:05]} e6 {[%emt 0:00:05]} 8. Be2 {[%emt 0:00:44]} cxd4 {[%emt 0:03:22]} 9. exd4 {[%emt 0:02:13]} Bd6 {[%emt 0:00:06]} 10. Bg5 {[%emt 0:01:57]} h6 {[%emt 0:00:23]} 11. Be3 {[%emt 0:00:09]} Rb8 {[%emt 0:08:39]} 12. a4 {[%emt 0:04:49]} a6 {[%emt 0:03:25]} 13. c3 {[%emt 0:05:08]} O-O {[%emt 0:06:30]} 14. O-O {[%emt 0:02:18]} Qc7 {[%emt 0:04:19]} 15. Nd2 {[%emt 0:02:22]} b5 {[%emt 0:13:58]} 16. axb5 {[%emt 0:01:58]} axb5 {[%emt 0:00:01]} 17. b4 {[%emt 0:00:06]} e5 {[%emt 0:07:02]} 18. Nb3 {[%emt 0:06:22]} Ne4 {[%emt 0:09:59]} 19. Rc1 {[%emt 0:00:06]} exd4 {[%emt 0:01:14]} 20. Nxd4 {[%emt 0:00:11]} Nxd4 {[%emt 0:02:05]} 21. Bxd4 {[%emt 0:01:10]} Bh2+ {[%emt 0:01:37]} 22. Kh1 {[%emt 0:00:23]} Be5 {[%emt 0:02:04]} 23. Bf3 {[%emt 0:01:43]} Rfe8 {[%emt 0:01:28]} 24. Re1 {[%emt 0:10:19]} Bxd4 {[%emt 0:07:42]} 25. Qxd4 {[%emt 0:00:05]} Qe5 {[%emt 0:00:35]} 26. Kg1 {[%emt 0:04:30]} Qxd4 {[%emt 0:02:10]} 27. cxd4 {[%emt 0:00:05]} Rbc8 {[%emt 0:06:34]} 28. Rxc8 {[%emt 0:14:11]} Rxc8 {[%emt 0:00:04]} 29. Bxe4 {[%emt 0:00:05]} dxe4 {[%emt 0:00:03]} 30. Rxe4 {[%emt 0:00:04]} Rc4 {[%emt 0:00:22]} 31. Re8+ {[%emt 0:00:05]} Kh7 {[%emt 0:00:03]} 32. d5 {[%emt 0:00:03]} Rxb4 {[%emt 0:00:06]} 33. d6 {[%emt 0:00:04]} Rd4 {[%emt 0:00:04]} 34. Rb8 {[%emt 0:00:04]} Rxd6 {[%emt 0:00:02]} 35. Rxb5 {[%emt 0:00:04]} 1/2-1/2

[Event "CZE-ch 2020"]
[Site "Pilsen"]
[Date "2020.08.28"]
[Round "6.4"]
[White "Sorm, Daniel"]
[Black "Babula, Vlastimil"]
[Result "1/2-1/2"]
[ECO "E20"]
[WhiteElo "2343"]
[BlackElo "2571"]
[Annotator "ChessBase"]
[PlyCount "51"]
[EventDate "2020.08.23"]
[EventType "swiss"]
[EventCountry "CZE"]
[SourceTitle "playchess.com"]
[Source "ChessBase"]
[SourceQuality "1"]
[TimeControl "40/5400+30:1800+30"]

1. d4 {[%emt 0:00:00]} Nf6 {[%emt 0:00:00]} 2. c4 {[%emt 0:00:00]} e6 {[%emt 0:00:00]} 3. Nc3 {[%emt 0:00:06]} Bb4 {[%emt 0:00:11]} 4. f3 {[%emt 0:00:09]} d5 {[%emt 0:01:34]} 5. a3 {[%emt 0:00:28]} Bxc3+ {[%emt 0:00:44]} 6. bxc3 {[%emt 0:00:13]} O-O {[%emt 0:01:18]} 7. cxd5 {[%emt 0:01:51]} exd5 {[%emt 0:00:33]} 8. e3 {[%emt 0:01:35]} Nh5 {[%emt 0:14:43]} 9. g3 {[%emt 0:08:51]} Re8 {[%emt 0:02:32]} 10. Bd3 {[%emt 0:04:12]} c5 {[%emt 0:03:27]} 11. Qc2 {[%emt 0:13:32]} g6 {[%emt 0:01:02]} 12. Qf2 {[%emt 0:00:31]} b6 {[%emt 0:04:51]} 13. Ne2 {[%emt 0:02:19]} Ba6 {[%emt 0:01:22]} 14. Bxa6 {[%emt 0:02:50]} Nxa6 {[%emt 0:00:45]} 15. g4 {[%emt 0:01:27]} Ng7 {[%emt 0:02:57]} 16. O-O {[%emt 0:02:44]} f5 {[%emt 0:05:47]} 17. gxf5 {[%emt 0:11:50]} Nxf5 {[%emt 0:00:44]} 18. e4 {[%emt 0:01:12]} dxe4 {[%emt 0:08:10]} 19. fxe4 {[%emt 0:00:14]} Rxe4 {[%emt 0:01:28]} 20. Ng3 {[%emt 0:06:11]} Rg4 {[%emt 0:05:02]} 21. Qe2 {[%emt 0:16:36]} h5 {[%emt 0:12:26]} 22. Qe6+ {[%emt 0:09:00]} Kg7 {[%emt 0:01:02]} 23. Qe5+ {[%emt 0:11:25]} Kg8 {[%emt 0:03:05]} 24. Qe6+ {[%emt 0:00:19]} Kg7 {[%emt 0:00:15]} 25. Qe5+ {[%emt 0:03:28]} Kg8 {[%emt 0:00:31]} 26. Qe6+ {[%emt 0:00:07]} 1/2-1/2

[Event "CZE-ch 2020"]
[Site "Pilsen"]
[Date "2020.08.28"]
[Round "6.5"]
[White "Nguyen, Thai Dai Van"]
[Black "Cerveny, Petr"]
[Result "1-0"]
[ECO "D11"]
[WhiteElo "2569"]
[BlackElo "2340"]
[Annotator "ChessBase"]
[PlyCount "113"]
[EventDate "2020.08.23"]
[EventType "swiss"]
[EventCountry "CZE"]
[SourceTitle "playchess.com"]
[Source "ChessBase"]
[SourceQuality "1"]
[TimeControl "40/5400+30:1800+30"]

1. Nf3 {[%emt 0:00:00]} d5 {[%emt 0:00:00]} 2. d4 {[%emt 0:00:00]} Nf6 {[%emt 0:00:00]} 3. c4 {[%emt 0:00:00]} c6 {[%emt 0:00:00]} 4. e3 {[%emt 0:00:20]} a6 {[%emt 0:00:00]} 5. Bd3 {[%emt 0:13:07]} Bg4 {[%emt 0:00:06]} 6. Nbd2 {[%emt 0:00:09]} Nbd7 {[%emt 0:00:18]} 7. h3 {[%emt 0:02:24]} Bh5 {[%emt 0:00:20]} 8. O-O {[%emt 0:00:50]} e6 {[%emt 0:00:31]} 9. b3 {[%emt 0:00:28]} Bd6 {[%emt 0:00:41]} 10. Bb2 {[%emt 0:02:35]} Qb8 {[%emt 0:06:57]} 11. Qc2 {[%emt 0:02:15]} Bg6 {[%emt 0:00:18]} 12. Bxg6 {[%emt 0:04:38]} hxg6 {[%emt 0:00:05]} 13. e4 {[%emt 0:00:18]} Nxe4 {[%emt 0:01:42]} 14. Nxe4 {[%emt 0:00:39]} dxe4 {[%emt 0:00:07]} 15. Qxe4 {[%emt 0:00:07]} Nf6 {[%emt 0:01:34]} 16. Qe2 {[%emt 0:00:58]} O-O {[%emt 0:00:20]} 17. Rad1 {[%emt 0:08:15]} a5 {[%emt 0:26:36]} 18. a4 {[%emt 0:06:46]} Qc7 {[%emt 0:11:27]} 19. h4 {[%emt 0:02:02]} Rfd8 {[%emt 0:02:13]} 20. g3 {[%emt 0:04:20]} b6 {[%emt 0:06:11]} 21. Bc1 {[%emt 0:01:44]} Re8 {[%emt 0:02:38]} 22. Bg5 {[%emt 0:07:25]} Nh7 {[%emt 0:14:29]} 23. Kg2 {[%emt 0:03:14]} c5 {[%emt 0:04:43]} 24. Qd3 {[%emt 0:07:34]} Qb7 {[%emt 0:02:22]} 25. Rfe1 {[%emt 0:02:19]} cxd4 {[%emt 0:01:29]} 26. Qxd4 {[%emt 0:00:12]} Bc5 {[%emt 0:00:12]} 27. Qg4 {[%emt 0:04:49]} Nf8 {[%emt 0:09:35]} 28. Kg1 {[%emt 0:04:52]} f6 {[%emt 0:00:07]} 29. Be3 {[%emt 0:02:01]} Rad8 {[%emt 0:02:20]} 30. Nd4 {[%emt 0:00:20]} e5 {[%emt 0:00:56]} 31. Nb5 {[%emt 0:00:43]} Rxd1 {[%emt 0:01:06]} 32. Qxd1 {[%emt 0:00:27]} Qe7 {[%emt 0:00:20]} 33. Bxc5 {[%emt 0:01:33]} Qxc5 {[%emt 0:00:08]} 34. Qd3 {[%emt 0:00:05]} Re7 {[%emt 0:00:30]} 35. Nc3 {[%emt 0:00:57]} Re6 {[%emt 0:01:11]} 36. Rd1 {[%emt 0:00:50]} f5 {[%emt 0:00:32]} 37. Nd5 {[%emt 0:02:55]} e4 {[%emt 0:01:03]} 38. Qd2 {[%emt 0:00:10]} Kf7 {[%emt 0:03:09]} 39. Qg5 {[%emt 0:05:08]} Nh7 {[%emt 0:01:52]} 40. Qd8 {[%emt 0:00:06]} Qd6 {[%emt 0:00:53]} 41. Nf4 {[%emt 0:37:29]} Qxd8 {[%emt 0:00:38]} 42. Rxd8 {[%emt 0:00:00]} Rc6 {[%emt 0:08:12]} 43. Rd7+ {[%emt 0:00:00]} Kg8 {[%emt 0:01:12]} 44. Rb7 {[%emt 0:00:00]} g5 {[%emt 0:01:05]} 45. Nd5 {[%emt 0:00:00]} Kf8 {[%emt 0:00:47]} 46. Rxb6 {[%emt 0:00:00]} Rxb6 {[%emt 0:06:11]} 47. Nxb6 {[%emt 0:00:00]} Ke7 {[%emt 0:01:36]} 48. c5 {[%emt 0:00:00]} gxh4 {[%emt 0:01:34]} 49. gxh4 {[%emt 0:00:00]} Nf8 {[%emt 0:00:32]} 50. Nc4 {[%emt 0:00:00]} Ng6 {[%emt 0:07:40]} 51. Nxa5 {[%emt 0:00:57]} Nxh4 {[%emt 0:00:07]} 52. Nc6+ {[%emt 0:00:11]} Kd7 {[%emt 0:01:13]} 53. Nd4 {[%emt 0:00:09]} f4 {[%emt 0:02:36]} 54. a5 {[%emt 0:00:51]} g5 {[%emt 0:01:36]} 55. a6 {[%emt 0:00:09]} Kc8 {[%emt 0:00:24]} 56. c6 {[%emt 0:00:49]} Kb8 {[%emt 0:00:06]} 57. Nb5 {[%emt 0:00:13]} 1-0